lending/lending_fUSD_20241229
["ID","MTS","AMOUNT","RATE_DAILY","PERIOD"]
[347083598,1735491060294,-500.0,0.00013179,2]
[347083599,1735491060304,-822.12,0.00013179,2]
[347083600,1735491060314,-500.0,0.00013179,2]
[347083601,1735491060324,-500.0,0.00013179,2]
[347083602,1735491060334,-500.0,0.00013179,2]
[347083603,1735491060344,-500.0,0.00013179,2]
[347083604,1735491060354,-577.92,0.00013179,2]
[347083605,1735491060364,-500.0,0.00013179,2]
[347083606,1735491060374,-500.0,0.00013179,2]
[347083607,1735491060384,-870.38,0.00013179,2]
[347083608,1735491060394,-500.0,0.00013179,2]
[347083609,1735491060405,-500.0,0.00013179,2]
[347083610,1735491060415,-302.75026377,0.00013179,2]
[347083611,1735491060425,-500.0,0.00013179,2]
[347083612,1735491060435,-500.0,0.00013179,2]
[347083613,1735491060445,-500.0,0.00013179,2]
[347083614,1735491060454,-500.0,0.00013179,2]
[347083615,1735491060464,-160.34,0.00013179,2]
[347083616,1735491060474,-1015.64,0.00013179,2]
[347083617,1735491060484,-3278.13,0.00013179,2]
[347083618,1735491060494,-500.0,0.00013179,2]
[347083619,1735491060504,-500.0,0.00013179,2]
[347083620,1735491060513,-500.0,0.00013179,2]
[347083621,1735491060524,-500.0,0.00013179,2]
[347083622,1735491060534,-500.0,0.00013179,2]
[347083623,1735491060543,-500.0,0.00013179,2]
[347083624,1735491060553,-620.96,0.00013179,2]
[347083625,1735491060563,-1840.21,0.00013179,2]
[347083626,1735491060573,-704.14,0.00013179,2]
[347083627,1735491060584,-500.0,0.0001318,2]
[347083628,1735491060821,-500.0,0.0001318,2]
[347083629,1735491060830,-816.1,0.0001318,2]
[347083630,1735491060839,-500.0,0.0001318,2]
[347083631,1735491060848,-547.06967149,0.0001318,2]
[347083632,1735491060858,-590.14,0.0001318,2]
[347083633,1735491060867,-500.0,0.0001318,2]
[347083634,1735491060877,-500.0,0.0001318,2]
[347083635,1735491060888,-500.0,0.0001318,2]
[347083636,1735491060900,-428.97058412,0.0001318,2]
[347083637,1735491060910,-500.0,0.0001318,2]
[347083638,1735491060919,-500.0,0.0001318,2]
[347083639,1735491060928,-500.0,0.0001318,2]
[347083640,1735491060938,-500.0,0.0001318,2]
[347083641,1735491060947,-1340.36,0.0001318,2]
[347083642,1735491060956,-762.4,0.0001318,2]
[347083643,1735491060965,-500.0,0.0001318,2]
[347083644,1735491060975,-500.0,0.0001318,2]
[347083645,1735491060986,-472.09260781,0.0001318,2]
[347083646,1735491060995,-500.0,0.0001318,2]
[347083647,1735491061004,-500.0,0.0001318,2]
[347083648,1735491061014,-500.0,0.0001318,2]
[347083649,1735491061023,-500.0,0.0001318,2]
[347083650,1735491061033,-500.0,0.0001318,2]
[347083651,1735491061042,-500.0,0.0001318,2]
[347083652,1735491061051,-2344.33,0.0001318,2]
[347083653,1735491061060,-909.47,0.0001318,2]
[347083654,1735491061071,-865.68,0.0001318,2]
[347083655,1735491061080,-606.39131429,0.0001318,2]
[347083656,1735491061090,-500.0,0.0001318,2]
[347083657,1735491061101,-701.25,0.0001318,2]
[347083658,1735491061111,-439.65,0.0001318,2]
[347083659,1735491061120,-500.0,0.0001318,2]
[347083660,1735491061129,-507.84,0.0001318,2]
[347083661,1735491061139,-602.07,0.0001318,2]
[347083662,1735491061149,-500.0,0.0001318,2]
[347083663,1735491061158,-500.0,0.0001318,2]
[347083664,1735491061170,-500.0,0.0001318,2]
[347083665,1735491061180,-500.0,0.0001318,2]
[347083666,1735491061189,-500.0,0.0001318,2]
[347083667,1735491061199,-500.0,0.0001318,2]
[347083668,1735491061210,-500.0,0.0001318,2]
[347083669,1735491061220,-500.0,0.0001318,2]
[347083670,1735491061229,-500.0,0.0001318,2]
[347083671,1735491061238,-500.0,0.0001318,2]
[347083672,1735491061248,-437.78,0.0001318,2]
[347083673,1735491061257,-500.0,0.0001318,2]
[347083674,1735491061266,-493.66820872,0.0001318,2]
[347083675,1735491061276,-1953.32,0.0001318,2]
[347083676,1735491061286,-500.0,0.0001318,2]
[347083677,1735491061296,-160.70306722,0.0001318,2]
[347083678,1735491061305,-500.0,0.0001318,2]
[347083679,1735491061314,-500.0,0.0001318,2]
[347083680,1735491061324,-500.0,0.0001318,2]
[347083681,1735491061334,-322.39,0.0001318,2]
[347083682,1735491061343,-500.0,0.0001318,2]
[347083683,1735491061353,-621.43,0.0001318,2]
[347083684,1735491061364,-500.0,0.0001318,2]
[347083685,1735491061373,-500.0,0.0001318,2]
[347083686,1735491061383,-312.35,0.0001318,2]
[347083687,1735491061393,-500.0,0.0001318,2]
[347083688,1735491061403,-873.53,0.0001318,2]
[347083689,1735491061413,-500.0,0.0001318,2]
[347083690,1735491061423,-500.0,0.0001318,2]
[347083691,1735491061432,-500.0,0.0001318,2]
[347083692,1735491061442,-722.38,0.0001318,2]
[347083693,1735491061451,-500.0,0.0001318,2]
[347083694,1735491061461,-433.53,0.0001318,2]
[347083695,1735491061470,-500.0,0.0001318,2]
[347083696,1735491061479,-500.0,0.0001318,2]
[347083697,1735491061489,-500.0,0.0001318,2]
[347083698,1735491061499,-500.0,0.0001318,2]
[347083699,1735491061509,-500.0,0.0001318,2]
[347083700,1735491061518,-500.0,0.0001318,2]
[347083701,1735491061527,-2838.92,0.0001318,2]
[347083702,1735491061538,-500.0,0.0001318,2]
[347083703,1735491061548,-500.0,0.0001318,2]
[347083704,1735491061557,-3628.4,0.0001318,2]
[347083705,1735491061567,-500.0,0.0001318,2]
[347083706,1735491061576,-876.23,0.0001318,2]
[347083707,1735491061586,-3692.81,0.0001318,2]
[347083708,1735491061597,-500.0,0.0001318,2]
[347083709,1735491061606,-1101.36,0.0001318,2]
[347083710,1735491061616,-870.98,0.0001318,2]
[347083711,1735491061625,-500.0,0.0001318,2]
[347083712,1735491061635,-1348.28,0.0001318,2]
[347083713,1735491061645,-1836.05,0.0001318,2]
[347083714,1735491061654,-500.0,0.00013181,2]
[347083715,1735491061664,-999.87,0.00013181,2]
[347083716,1735491061673,-510.19,0.00013181,2]
[347083717,1735491061682,-1921.52,0.00013181,2]
[347083718,1735491061692,-546.78,0.00013181,2]
[347083719,1735491061702,-3871.1,0.00013181,2]
[347083720,1735491061711,-592.58,0.00013181,2]
[347083721,1735491061720,-513.22,0.00013181,2]
[347083722,1735491061729,-500.0,0.00013181,2]
[347083723,1735491061739,-1175.67,0.00013181,2]
[347083724,1735491061748,-500.0,0.00013181,2]
[347083725,1735491061758,-500.0,0.00013181,2]
[347083726,1735491061768,-515.44,0.00013182,2]
[347083727,1735491061778,-615.03,0.00013182,2]
[347083728,1735491061787,-448.65263227,0.00013182,2]
[347083729,1735491061799,-471.70916211,0.00013182,2]
[347083730,1735491061809,-523.32839714,0.00013182,2]
[347083731,1735491061818,-500.0,0.00013182,2]
[347083732,1735491061828,-500.0,0.00013182,2]
[347083733,1735491061837,-899.47,0.00013182,2]
[347083734,1735491061847,-322.78502691,0.00013182,2]
[347083735,1735491061856,-500.0,0.00013182,2]
[347083736,1735491061866,-815.97,0.00013182,2]
[347083737,1735491061876,-18568.48,0.00013182,2]
[347083738,1735491061885,-500.0,0.00013182,2]
[347083739,1735491061895,-500.0,0.00013182,2]
[347083740,1735491061905,-545.9,0.00013182,2]
[347083741,1735491061915,-969.49,0.00013182,2]
[347083742,1735491061924,-500.0,0.00013182,2]
[347083743,1735491061935,-500.0,0.00013182,2]
[347083744,1735491061945,-1026.67,0.00013182,2]
[347083745,1735491061955,-500.0,0.00013182,2]
[347083746,1735491061964,-500.0,0.00013182,2]
[347083747,1735491061974,-500.0,0.00013182,2]
[347083748,1735491061984,-500.0,0.00013182,2]
[347083749,1735491061994,-2110.5,0.00013182,2]
[347083750,1735491062004,-500.0,0.00013182,2]
[347083751,1735491062014,-500.0,0.00013182,2]
[347083752,1735491062023,-500.0,0.00013182,2]
[347083753,1735491062034,-500.0,0.00013182,2]
[347083754,1735491062043,-286.41557939,0.00013182,2]
[347083755,1735491062052,-703.26,0.00013182,2]
[347083756,1735491062062,-510.62,0.00013182,2]
[347083757,1735491062073,-500.0,0.00013182,2]
[347083758,1735491062083,-500.0,0.00013182,2]
[347083759,1735491062092,-500.0,0.00013182,2]
[347083760,1735491062104,-500.0,0.00013182,2]
[347083761,1735491062114,-308.5155663,0.00013182,2]
[347083762,1735491062124,-500.0,0.00013182,2]
[347083763,1735491062134,-570.93,0.00013182,2]
[347083764,1735491062144,-1499.18,0.00013183,2]
[347083765,1735491062153,-500.0,0.00013183,2]
[347083766,1735491062163,-578.37,0.00013183,2]
[347083767,1735491062173,-500.0,0.00013183,2]
[347083768,1735491062183,-500.0,0.00013183,2]
[347083769,1735491062192,-548.58,0.00013183,2]
[347083770,1735491062203,-500.0,0.00013183,2]
[347083771,1735491062212,-700.84,0.00013183,2]
[347083772,1735491062222,-2940.43,0.00013183,2]
[347083773,1735491062232,-5636.03,0.00013183,2]
[347083774,1735491062242,-556.4,0.00013183,2]
[347083775,1735491062251,-500.0,0.00013183,2]
[347083776,1735491062261,-1813.25,0.00013183,2]
[347083777,1735491062270,-640.38,0.00013183,2]
[347083778,1735491062280,-15027.68,0.00013183,2]
[347083779,1735491062290,-500.0,0.00013183,2]
[347083780,1735491062300,-500.0,0.00013183,2]
[347083781,1735491062310,-500.0,0.00013183,2]
[347083782,1735491062320,-1140.36,0.00013183,2]
[347083783,1735491062329,-4325.16,0.00013184,2]
[347083784,1735491062339,-322.02,0.00013184,2]
[347083785,1735491062348,-500.0,0.00013184,2]
[347083786,1735491062358,-500.0,0.00013184,2]
[347083787,1735491062368,-1186.66,0.00013184,2]
[347083788,1735491062377,-692.34,0.00013184,2]
[347083789,1735491062386,-150.0,0.00013203,2]
[347083790,1735491062396,-150.0,0.00013236,2]
[347083791,1735491062406,-150.0,0.0001324,2]
[347083792,1735491062416,-150.0,0.000133,2]
[347083793,1735491062426,-150.0,0.000133,2]
[347083794,1735491062436,-1100.0,0.00013342,2]
[347083795,1735491062445,-500.0,0.00013342,2]
[347083796,1735491062454,-67472.9928,0.00013354,2]
[347083797,1735491062463,-500.0,0.00013354,2]
[347083798,1735491062474,-500.0,0.00013354,2]
[347083799,1735491062484,-500.0,0.00013354,2]
[347083800,1735491062494,-791.71,0.00013354,2]
[347083801,1735491062504,-500.0,0.00013354,2]
[347083802,1735491062514,-500.0,0.00013354,2]
[347083803,1735491062523,-372.98784435,0.00013354,2]
[347083804,1735491062533,-950.63,0.00013354,2]
[347083805,1735491062543,-1210.43,0.00013354,2]
[347083806,1735491062553,-500.0,0.00013354,2]
[347083807,1735491062563,-500.0,0.00013354,2]
[347083808,1735491062573,-449.88588224,0.00013354,2]
[347083809,1735491062583,-500.0,0.00013354,2]
[347083810,1735491062593,-500.0,0.00013354,2]
[347083811,1735491062603,-500.0,0.00013354,2]
[347083812,1735491062613,-500.0,0.00013354,2]
[347083813,1735491062623,-500.0,0.00013354,2]
[347083814,1735491062633,-500.0,0.00013354,2]
[347083815,1735491062643,-500.0,0.00013354,2]
[347083816,1735491062652,-500.0,0.00013354,2]
[347083817,1735491062661,-500.0,0.00013354,2]
[347083818,1735491062670,-500.0,0.00013354,2]
[347083819,1735491062680,-500.0,0.00013354,2]
[347083820,1735491062689,-500.0,0.00013354,2]
[347083821,1735491062699,-150.0,0.00013364,2]
[347083822,1735491062708,-150.0,0.00013408,2]
[347083823,1735491062717,-150.0,0.00013427,2]
[347083824,1735491062727,-1000.0,0.00013437,2]
[347083825,1735491062736,-150.0,0.0001344,2]
[347083826,1735491062746,-1159.18,0.00013453,2]
[347083827,1735491062755,-500.0,0.00013453,2]
[347083828,1735491062765,-500.0,0.00013453,2]
[347083829,1735491062775,-500.0,0.00013453,2]
[347083830,1735491062785,-520.55,0.00013453,2]
[347083831,1735491062794,-500.0,0.00013453,2]
[347083832,1735491062804,-500.0,0.00013453,2]
[347083833,1735491062814,-500.0,0.00013453,2]
[347083834,1735491062824,-318.81867213,0.00013453,2]
[347083835,1735491062834,-500.0,0.00013453,2]
[347083836,1735491062843,-705.2,0.00013453,2]
[347083837,1735491062852,-500.0,0.00013453,2]
[347083838,1735491062861,-583.41339855,0.00013453,2]
[347083839,1735491062870,-500.0,0.00013453,2]
[347083840,1735491062880,-2192.36,0.00013453,2]
[347083841,1735491062889,-500.0,0.00013453,2]
[347083842,1735491062898,-279.70948789,0.00013453,2]
[347083843,1735491062907,-154.67598514,0.00013453,2]
[347083844,1735491062916,-500.0,0.00013453,2]
[347083845,1735491062926,-2173.71,0.00013453,2]
[347083846,1735491062935,-1409.21,0.00013453,2]
[347083847,1735491062944,-1775.22,0.00013453,2]
[347083848,1735491062953,-500.0,0.00013453,2]
[347083849,1735491062962,-500.0,0.00013453,2]
[347083850,1735491062972,-500.0,0.00013453,2]
[347083851,1735491062981,-500.0,0.00013453,2]
[347083852,1735491062991,-500.0,0.00013453,2]
[347083853,1735491063000,-500.0,0.00013453,2]
[347083854,1735491063010,-500.0,0.00013453,2]
[347083855,1735491063019,-156.27264294,0.00013453,2]
[347083856,1735491063029,-2866.13,0.00013453,2]
[347083857,1735491063038,-500.0,0.00013453,2]
[347083858,1735491063048,-500.0,0.00013453,2]
[347083859,1735491063057,-500.0,0.00013453,2]
[347083860,1735491063067,-500.0,0.00013453,2]
[347083861,1735491063078,-500.0,0.00013453,2]
[347083862,1735491063087,-500.0,0.00013453,2]
[347083863,1735491063097,-500.0,0.00013453,2]
[347083864,1735491063112,-500.0,0.00013453,2]
[347083865,1735491063123,-500.0,0.00013453,2]
[347083866,1735491063194,-500.0,0.00013453,2]
[347083867,1735491063204,-500.0,0.00013453,2]
[347083868,1735491063213,-500.0,0.00013453,2]
[347083869,1735491063223,-1154.75,0.00013453,2]
[347083870,1735491063233,-1890.37,0.00013453,2]
[347083871,1735491063243,-781.33,0.00013453,2]
[347083872,1735491063253,-500.0,0.00013453,2]
[347083873,1735491063264,-500.0,0.00013453,2]
[347083874,1735491063274,-1791.32,0.00013453,2]
[347083875,1735491063284,-500.0,0.00013453,2]
[347083876,1735491063294,-500.0,0.00013453,2]
[347083877,1735491063303,-1113.85,0.00013453,2]
[347083878,1735491063312,-500.0,0.00013453,2]
[347083879,1735491063322,-500.0,0.00013453,2]
[347083880,1735491063332,-500.0,0.00013453,2]
[347083881,1735491063342,-695.21,0.00013453,2]
[347083882,1735491063352,-500.0,0.00013453,2]
[347083883,1735491063362,-500.0,0.00013453,2]
[347083884,1735491063371,-500.0,0.00013453,2]
[347083885,1735491063381,-822.12,0.00013453,2]
[347083886,1735491063391,-500.0,0.00013453,2]
[347083887,1735491063401,-500.0,0.00013453,2]
[347083888,1735491063412,-500.0,0.00013453,2]
[347083889,1735491063421,-287.90477226,0.00013453,2]
[347083890,1735491063431,-577.92,0.00013453,2]
[347083891,1735491063441,-500.0,0.00013453,2]
[347083892,1735491063451,-309.97627532,0.00013453,2]
[347083893,1735491063461,-870.38,0.00013453,2]
[347083894,1735491063471,-500.0,0.00013453,2]
[347083895,1735491063482,-500.0,0.00013453,2]
[347083896,1735491063491,-500.0,0.00013453,2]
[347083897,1735491063501,-500.0,0.00013453,2]
[347083898,1735491063511,-500.0,0.00013453,2]
[347083899,1735491063521,-500.0,0.00013453,2]
[347083900,1735491063533,-3278.13,0.00013453,2]
[347083901,1735491063543,-1015.64,0.00013453,2]
[347083902,1735491063553,-500.0,0.00013453,2]
[347083903,1735491063563,-500.0,0.00013453,2]
[347083904,1735491063572,-500.0,0.00013453,2]
[347083905,1735491063582,-500.0,0.00013453,2]
[347083906,1735491063591,-500.0,0.00013453,2]
[347083907,1735491063601,-623.09654774,0.00013453,2]
[347083908,1735491063611,-620.96,0.00013453,2]
[347083909,1735491063621,-1840.21,0.00013453,2]
[347083910,1735491063630,-704.14,0.00013453,2]
[347083911,1735491063640,-500.0,0.00013454,2]
[347083912,1735491063649,-412.4,0.00013454,2]
[347083913,1735491063658,-816.1,0.00013454,2]
[347083914,1735491063668,-500.0,0.00013454,2]
[347083915,1735491063677,-590.14,0.00013454,2]
[347083916,1735491063686,-150.18,0.00013454,2]
[347083917,1735491063695,-283.7,0.00013454,2]
[347083918,1735491063705,-294.15587874,0.00013454,2]
[347083919,1735491063715,-500.0,0.00013454,2]
[347083920,1735491063724,-500.0,0.00013454,2]
[347083921,1735491063733,-290.1564692,0.00013454,2]
[347083922,1735491063743,-287.06175393,0.00013454,2]
[347083923,1735491063752,-1340.36,0.00013454,2]
[347083924,1735491063761,-762.4,0.00013454,2]
[347083925,1735491063771,-473.43304411,0.00013454,2]
[347083926,1735491063781,-558.30462267,0.00013454,2]
[347083927,1735491063791,-224.08,0.00013454,2]
[347083928,1735491063800,-500.0,0.00013454,2]
[347083929,1735491063809,-500.0,0.00013454,2]
[347083930,1735491063819,-500.0,0.00013454,2]
[347083931,1735491063828,-500.0,0.00013454,2]
[347083932,1735491063838,-500.0,0.00013454,2]
[347083933,1735491063847,-2344.33,0.00013454,2]
[347083934,1735491063856,-909.47,0.00013454,2]
[347083935,1735491063866,-865.68,0.00013454,2]
[347083936,1735491063875,-500.0,0.00013454,2]
[347083937,1735491063884,-701.25,0.00013454,2]
[347083938,1735491063894,-500.0,0.00013454,2]
[347083939,1735491063903,-602.07,0.00013454,2]
[347083940,1735491063913,-500.0,0.00013454,2]
[347083941,1735491063922,-500.0,0.00013454,2]
[347083942,1735491063932,-500.0,0.00013454,2]
[347083943,1735491063941,-500.0,0.00013454,2]
[347083944,1735491063950,-500.0,0.00013454,2]
[347083945,1735491063960,-503.75,0.00013454,2]
[347083946,1735491063970,-524.61,0.00013454,2]
[347083947,1735491063980,-500.0,0.00013454,2]
[347083948,1735491063989,-500.0,0.00013454,2]
[347083949,1735491063999,-500.0,0.00013454,2]
[347083950,1735491064008,-500.0,0.00013454,2]
[347083951,1735491064019,-1953.32,0.00013454,2]
[347083952,1735491064029,-500.0,0.00013454,2]
[347083953,1735491064038,-500.0,0.00013454,2]
[347083954,1735491064047,-272.37,0.00013454,2]
[347083955,1735491064056,-500.0,0.00013454,2]
[347083956,1735491064065,-500.0,0.00013454,2]
[347083957,1735491064076,-621.43,0.00013454,2]
[347083958,1735491064085,-500.0,0.00013454,2]
[347083959,1735491064094,-500.0,0.00013454,2]
[347083960,1735491064107,-504.42,0.00013454,2]
[347083961,1735491064116,-873.53,0.00013454,2]
[347083962,1735491064126,-500.0,0.00013454,2]
[347083963,1735491064135,-500.0,0.00013454,2]
[347083964,1735491064146,-500.0,0.00013454,2]
[347083965,1735491064155,-722.38,0.00013454,2]
[347083966,1735491064165,-500.0,0.00013454,2]
[347083967,1735491064175,-500.0,0.00013454,2]
[347083968,1735491064185,-500.0,0.00013454,2]
[347083969,1735491064195,-500.0,0.00013454,2]
[347083970,1735491064205,-562.66867201,0.00013454,2]
[347083971,1735491064215,-500.0,0.00013454,2]
[347083972,1735491064224,-490.19,0.00013454,2]
[347083973,1735491064234,-2838.92,0.00013454,2]
[347083974,1735491064244,-500.0,0.00013454,2]
[347083975,1735491064253,-500.0,0.00013454,2]
[347083976,1735491064264,-3628.4,0.00013454,2]
[347083977,1735491064274,-500.0,0.00013454,2]
[347083978,1735491064283,-876.23,0.00013454,2]
[347083979,1735491064293,-3692.81,0.00013454,2]
[347083980,1735491064303,-500.0,0.00013454,2]
[347083981,1735491064313,-1101.36,0.00013454,2]
[347083982,1735491064323,-870.98,0.00013454,2]
[347083983,1735491064332,-500.0,0.00013454,2]
[347083984,1735491064342,-1348.28,0.00013454,2]
[347083985,1735491064353,-1836.05,0.00013454,2]
[347083986,1735491064362,-500.0,0.00013455,2]
[347083987,1735491064372,-999.87,0.00013455,2]
[347083988,1735491064382,-510.19,0.00013455,2]
[347083989,1735491064391,-1921.52,0.00013455,2]
[347083990,1735491064401,-546.78,0.00013455,2]
[347083991,1735491064411,-3871.1,0.00013455,2]
[347083992,1735491064420,-592.58,0.00013455,2]
[347083993,1735491064430,-513.22,0.00013455,2]
[347083994,1735491064439,-500.0,0.00013455,2]
[347083995,1735491064449,-1175.67,0.00013455,2]
[347083996,1735491064460,-500.0,0.00013455,2]
[347083997,1735491064470,-500.0,0.00013455,2]
[347083998,1735491064479,-515.44,0.00013456,2]
[347083999,1735491064489,-615.03,0.00013456,2]
[347084000,1735491064499,-500.0,0.00013456,2]
[347084001,1735491064508,-500.0,0.00013456,2]
[347084002,1735491064518,-899.47,0.00013456,2]
[347084003,1735491064528,-500.0,0.00013456,2]
[347084004,1735491064537,-815.97,0.00013456,2]
[347084005,1735491064547,-18568.48,0.00013456,2]
[347084006,1735491064556,-500.0,0.00013456,2]
[347084007,1735491064565,-221.33306172,0.00013456,2]
[347084008,1735491064575,-545.9,0.00013456,2]
[347084009,1735491064585,-969.49,0.00013456,2]
[347084010,1735491064594,-500.0,0.00013456,2]
[347084011,1735491064604,-500.0,0.00013456,2]
[347084012,1735491064613,-1026.67,0.00013456,2]
[347084013,1735491064622,-535.72,0.00013456,2]
[347084014,1735491064642,-500.0,0.00013456,2]
[347084015,1735491064651,-500.0,0.00013456,2]
[347084016,1735491064661,-412.70917212,0.00013456,2]
[347084017,1735491064670,-2110.5,0.00013456,2]
[347084018,1735491064680,-500.0,0.00013456,2]
[347084019,1735491064690,-500.0,0.00013456,2]
[347084020,1735491064699,-500.0,0.00013456,2]
[347084021,1735491064709,-500.0,0.00013456,2]
[347084022,1735491064718,-703.26,0.00013456,2]
[347084023,1735491064728,-510.62,0.00013456,2]
[347084024,1735491064738,-500.0,0.00013456,2]
[347084025,1735491064747,-500.0,0.00013456,2]
[347084026,1735491064757,-428.25332139,0.00013456,2]
[347084027,1735491064770,-500.0,0.00013456,2]
[347084028,1735491064779,-500.0,0.00013456,2]
[347084029,1735491064789,-570.93,0.00013456,2]
[347084030,1735491064799,-1499.18,0.00013457,2]
[347084031,1735491064808,-500.0,0.00013457,2]
[347084032,1735491064818,-578.37,0.00013457,2]
[347084033,1735491064828,-500.0,0.00013457,2]
[347084034,1735491064838,-500.0,0.00013457,2]
[347084035,1735491064847,-548.58,0.00013457,2]
[347084036,1735491064856,-500.0,0.00013457,2]
[347084037,1735491064866,-700.84,0.00013457,2]
[347084038,1735491064876,-2940.43,0.00013457,2]
[347084039,1735491064886,-5636.03,0.00013457,2]
[347084040,1735491064895,-556.4,0.00013457,2]
[347084041,1735491064905,-500.0,0.00013457,2]
[347084042,1735491064915,-1813.25,0.00013457,2]
[347084043,1735491064925,-640.38,0.00013457,2]
[347084044,1735491064934,-15027.68,0.00013457,2]
[347084045,1735491064944,-179.46,0.00013457,2]
[347084046,1735491064953,-500.0,0.00013457,2]
[347084047,1735491064962,-500.0,0.00013457,2]
[347084048,1735491064972,-1140.36,0.00013457,2]
[347084049,1735491064982,-4325.16,0.00013458,2]
[347084050,1735491064990,-500.0,0.00013458,2]
[347084051,1735491064999,-500.0,0.00013458,2]
[347084052,1735491065008,-1186.66,0.00013458,2]
[347084053,1735491065018,-692.34,0.00013458,2]
[347084054,1735491065027,-462.66,0.00013466,2]
[347084055,1735491065036,-619.89,0.00013469,2]
[347084056,1735491065048,-150.0,0.00013487,2]
[347084057,1735491065058,-150.0,0.00013491,2]
[347084058,1735491065067,-150.0,0.00013507,2]
[347084059,1735491065077,-150.0,0.00013555,2]
[347084060,1735491065086,-150.0,0.00013558,2]
[347084061,1735491065097,-150.0,0.000136,2]
[347084062,1735491065110,-150.0,0.0001361,2]
[347084063,1735491065119,-150.0,0.00013618,2]
[347084064,1735491065129,-500.0,0.00013628,2]
[347084065,1735491065138,-500.0,0.00013628,2]
[347084066,1735491065149,-500.0,0.00013628,2]
[347084067,1735491065158,-791.71,0.00013628,2]
[347084068,1735491065167,-500.0,0.00013628,2]
[347084069,1735491065177,-500.0,0.00013628,2]
[347084070,1735491065187,-950.63,0.00013628,2]
[347084071,1735491065197,-1210.43,0.00013628,2]
[347084072,1735491065207,-229.49936633,0.00013628,2]
[347084073,1735491065216,-500.0,0.00013628,2]
[347084074,1735491065225,-500.0,0.00013628,2]
[347084075,1735491065235,-500.0,0.00013628,2]
[347084076,1735491065245,-500.0,0.00013628,2]
[347084077,1735491065254,-500.0,0.00013628,2]
[347084078,1735491065265,-500.0,0.00013628,2]
[347084079,1735491065274,-500.0,0.00013628,2]
[347084080,1735491065283,-500.0,0.00013628,2]
[347084081,1735491065293,-500.0,0.00013628,2]
[347084082,1735491065302,-500.0,0.00013628,2]
[347084083,1735491065311,-500.0,0.00013628,2]
[347084084,1735491065320,-500.0,0.00013628,2]
[347084085,1735491065329,-500.0,0.00013628,2]
[347084086,1735491065339,-150.0,0.0001365,2]
[347084087,1735491065348,-150.0,0.00013682,2]
[347084088,1735491065357,-150.0,0.00013689,2]
[347084089,1735491065366,-150.0,0.00013695,2]
[347084090,1735491065376,-150.0,0.00013697,2]
[347084091,1735491065385,-500.0,0.00013699,2]
[347084092,1735491065395,-500.0,0.00013699,2]
[347084093,1735491065405,-500.0,0.00013699,2]
[347084094,1735491065414,-800.0,0.00013699,2]
[347084095,1735491065424,-4000.0,0.00013699,2]
[347084096,1735491065433,-514.49,0.00013699,2]
[347084097,1735491065443,-200.0,0.00013699,2]